[Event "Titled Tuesday Blitz June 14 Late 2022"]
[White "Kozak, Adam"]
[Black "Nakamura, Hikaru"]
[WhiteFideId "753246"]
[BlackFideId "2016192"]
[WhiteElo "2459"]
[BlackElo "2850"]
[Result "0-1"]
[Round "05"]
[TimeControl "180+1"]
[Date "2022.06.14"]
[WhiteClock "0:00:10"]
[BlackClock "0:01:24"]

1. d4 {[%clk 0:03:00]}  f5 {[%clk 0:02:59]} 2. Nf3 {[%clk 0:02:59]}  d6 {[%clk 0:02:56]} 3. c4 {[%clk 0:02:59]}  Nf6 {[%clk 0:02:56]} 4. g3 {[%clk 0:03:00]}  g6 {[%clk 0:02:56]} 5. Bg2 {[%clk 0:03:00]}  Bg7 {[%clk 0:02:55]} 6. O-O {[%clk 0:03:01]}  O-O {[%clk 0:02:54]} 7. Nc3 {[%clk 0:03:01]}  c6 {[%clk 0:02:54]} 8. d5 {[%clk 0:03:01]}  e5 {[%clk 0:02:54]} 9. dxe6 {[%clk 0:03:02]}  Bxe6 {[%clk 0:02:54]} 10. b3 {[%clk 0:03:02]}  Re8 {[%clk 0:02:53]} 11. Ng5 {[%clk 0:03:02]}  Na6 {[%clk 0:02:49]} 12. Nxe6 {[%clk 0:03:02]}  Rxe6 {[%clk 0:02:48]} 13. Bb2 {[%clk 0:03:03]}  Ne4 {[%clk 0:02:46]} 14. Rc1 {[%clk 0:02:53]}  Qe7 {[%clk 0:02:40]} 15. e3 {[%clk 0:02:35]}  Nb4 {[%clk 0:02:40]} 16. Qe2 {[%clk 0:02:36]}  Re8 {[%clk 0:02:33]} 17. Rfd1 {[%clk 0:02:29]}  a5 {[%clk 0:02:19]} 18. a3 {[%clk 0:02:14]}  Na6 {[%clk 0:02:18]} 19. Na4 {[%clk 0:02:15]}  Bh6 {[%clk 0:02:10]} 20. Re1 {[%clk 0:02:04]}  Nxf2 {[%clk 0:01:59]} 21. Qxf2 {[%clk 0:02:04]}  Bxe3 {[%clk 0:01:59]} 22. Rxe3 {[%clk 0:02:03]}  Rxe3 {[%clk 0:02:00]} 23. Bc3 {[%clk 0:01:47]}  Re2 {[%clk 0:01:47]} 24. Qd4 {[%clk 0:01:39]}  Qe3+ {[%clk 0:01:46]} 25. Qxe3 {[%clk 0:01:40]}  R8xe3 {[%clk 0:01:45]} 26. Bf1 {[%clk 0:01:24]}  Ra2 {[%clk 0:01:44]} 27. c5 {[%clk 0:01:25]}  d5 {[%clk 0:01:36]} 28. Bd4 {[%clk 0:00:38]}  Rxb3 {[%clk 0:01:34]} 29. Nb6 {[%clk 0:00:38]}  Nc7 {[%clk 0:01:23]} 30. Re1 {[%clk 0:00:35]}  Kf7 {[%clk 0:01:23]} 31. Nc8 {[%clk 0:00:33]}  Ne6 {[%clk 0:01:24]} 32. Nd6+ {[%clk 0:00:34]}  Ke7 {[%clk 0:01:24]} 33. Bf6+ {[%clk 0:00:10]} 0-1


[Site "https://www.chess.com"]

[Event "Titled Tuesday Blitz June 14 Late 2022"]
[White "Kozin, Yuri"]
[Black "Mickiewicz, Piotr"]
[WhiteFideId "4129920"]
[BlackFideId "1114891"]
[WhiteElo "2536"]
[BlackElo "2209"]
[Result "1-0"]
[Round "05"]
[TimeControl "180+1"]
[Date "2022.06.15"]
[WhiteClock "0:00:08"]
[BlackClock "0:00:06"]

1. e4 {[%clk 0:03:00]}  c5 {[%clk 0:02:59]} 2. Nf3 {[%clk 0:02:50]}  d6 {[%clk 0:02:59]} 3. d4 {[%clk 0:02:50]}  cxd4 {[%clk 0:03:00]} 4. Nxd4 {[%clk 0:02:51]}  Nf6 {[%clk 0:03:00]} 5. Nc3 {[%clk 0:02:51]}  Nc6 {[%clk 0:03:00]} 6. Bc4 {[%clk 0:02:51]}  Na5 {[%clk 0:02:55]} 7. Bd3 {[%clk 0:02:48]}  g6 {[%clk 0:02:55]} 8. f4 {[%clk 0:02:33]}  Bg7 {[%clk 0:02:55]} 9. Nb3 {[%clk 0:02:33]}  O-O {[%clk 0:02:52]} 10. Be3 {[%clk 0:02:31]}  d5 {[%clk 0:02:31]} 11. e5 {[%clk 0:02:23]}  Nxb3 {[%clk 0:02:29]} 12. axb3 {[%clk 0:02:18]}  d4 {[%clk 0:02:29]} 13. exf6 {[%clk 0:02:11]}  Bxf6 {[%clk 0:02:30]} 14. Bd2 {[%clk 0:02:06]}  dxc3 {[%clk 0:02:29]} 15. Bxc3 {[%clk 0:02:07]}  Bxc3+ {[%clk 0:02:26]} 16. bxc3 {[%clk 0:02:06]}  Qc7 {[%clk 0:02:23]} 17. Qd2 {[%clk 0:02:04]}  Rd8 {[%clk 0:01:55]} 18. O-O {[%clk 0:02:01]}  Bf5 {[%clk 0:01:54]} 19. Kh1 {[%clk 0:01:57]}  a5 {[%clk 0:01:46]} 20. Qe3 {[%clk 0:01:42]}  Bxd3 {[%clk 0:01:41]} 21. cxd3 {[%clk 0:01:39]}  b5 {[%clk 0:01:32]} 22. c4 {[%clk 0:01:33]}  a4 {[%clk 0:01:29]} 23. bxa4 {[%clk 0:01:13]}  bxa4 {[%clk 0:01:28]} 24. Ra3 {[%clk 0:01:02]}  e6 {[%clk 0:01:16]} 25. Rfa1 {[%clk 0:01:00]}  Qc6 {[%clk 0:01:14]} 26. h3 {[%clk 0:01:00]}  Rd7 {[%clk 0:01:07]} 27. Qe5 {[%clk 0:00:52]}  Rda7 {[%clk 0:01:04]} 28. c5 {[%clk 0:00:41]}  Rd8 {[%clk 0:01:00]} 29. d4 {[%clk 0:00:41]}  Rda8 {[%clk 0:00:42]} 30. Kh2 {[%clk 0:00:29]}  Rb7 {[%clk 0:00:42]} 31. h4 {[%clk 0:00:25]}  Rb2 {[%clk 0:00:41]} 32. Rg3 {[%clk 0:00:20]}  a3 {[%clk 0:00:41]} 33. h5 {[%clk 0:00:20]}  Qd5 {[%clk 0:00:16]} 34. Qxd5 {[%clk 0:00:17]}  exd5 {[%clk 0:00:17]} 35. Raxa3 {[%clk 0:00:16]}  Rxa3 {[%clk 0:00:15]} 36. Rxa3 {[%clk 0:00:17]}  gxh5 {[%clk 0:00:10]} 37. Rc3 {[%clk 0:00:12]}  Rb7 {[%clk 0:00:09]} 38. Rh3 {[%clk 0:00:11]}  Rb4 {[%clk 0:00:08]} 39. Rc3 {[%clk 0:00:09]}  Rb7 {[%clk 0:00:07]} 40. c6 {[%clk 0:00:09]}  Rc7 {[%clk 0:00:06]} 41. Rc5 {[%clk 0:00:10]}  Kg7 {[%clk 0:00:07]} 42. Kg3 {[%clk 0:00:09]}  Kf6 {[%clk 0:00:08]} 43. Rxd5 {[%clk 0:00:08]}  Ke6 {[%clk 0:00:08]} 44. Rc5 {[%clk 0:00:07]}  Kd6 {[%clk 0:00:08]} 45. Kh4 {[%clk 0:00:08]}  f6 {[%clk 0:00:06]} 46. Kxh5 {[%clk 0:00:08]} 1-0


[Site "https://www.chess.com"]

[Event "Titled Tuesday Blitz June 14 Late 2022"]
[White "Krstulovic, Alex"]
[Black "Acosta, Pablo Ismael"]
[WhiteFideId "760056"]
[BlackFideId "124311"]
[WhiteElo "2193"]
[BlackElo "2313"]
[Result "0-1"]
[Round "05"]
[TimeControl "180+1"]
[Date "2022.06.14"]
[WhiteClock "0:00:09"]
[BlackClock "0:00:05"]

1. e4 {[%clk 0:03:00]}  e6 {[%clk 0:02:59]} 2. d4 {[%clk 0:03:00]}  d5 {[%clk 0:03:00]} 3. e5 {[%clk 0:03:00]}  c5 {[%clk 0:02:59]} 4. c3 {[%clk 0:03:01]}  Nc6 {[%clk 0:02:59]} 5. Nf3 {[%clk 0:03:01]}  Qb6 {[%clk 0:03:00]} 6. Be2 {[%clk 0:03:01]}  Bd7 {[%clk 0:03:00]} 7. O-O {[%clk 0:03:00]}  f6 {[%clk 0:03:00]} 8. Re1 {[%clk 0:02:43]}  fxe5 {[%clk 0:02:29]} 9. Nxe5 {[%clk 0:02:42]}  Nxe5 {[%clk 0:02:26]} 10. dxe5 {[%clk 0:02:42]}  Ne7 {[%clk 0:02:22]} 11. Bd3 {[%clk 0:02:36]}  O-O-O {[%clk 0:02:17]} 12. b4 {[%clk 0:02:34]}  Nc6 {[%clk 0:02:08]} 13. b5 {[%clk 0:02:04]}  Na5 {[%clk 0:02:07]} 14. a4 {[%clk 0:02:04]}  c4 {[%clk 0:02:07]} 15. Be3 {[%clk 0:01:59]}  Bc5 {[%clk 0:02:07]} 16. Bxc5 {[%clk 0:01:58]}  Qxc5 {[%clk 0:02:07]} 17. Bc2 {[%clk 0:01:59]}  Rdf8 {[%clk 0:02:04]} 18. Re3 {[%clk 0:01:53]}  Rf7 {[%clk 0:01:58]} 19. Nd2 {[%clk 0:01:50]}  Rhf8 {[%clk 0:01:49]} 20. Nf3 {[%clk 0:01:50]}  g5 {[%clk 0:01:50]} 21. h3 {[%clk 0:01:47]}  h5 {[%clk 0:01:49]} 22. Bg6 {[%clk 0:01:46]}  Rf4 {[%clk 0:01:32]} 23. Bxh5 {[%clk 0:01:44]}  Nb3 {[%clk 0:01:32]} 24. Ra2 {[%clk 0:01:40]}  Qe7 {[%clk 0:01:21]} 25. Bg4 {[%clk 0:01:34]}  Nc5 {[%clk 0:01:16]} 26. g3 {[%clk 0:01:25]}  Rxg4 {[%clk 0:01:07]} 27. hxg4 {[%clk 0:01:23]}  Be8 {[%clk 0:01:08]} 28. Nd4 {[%clk 0:01:20]}  Bg6 {[%clk 0:01:05]} 29. f3 {[%clk 0:01:09]}  Nd3 {[%clk 0:00:42]} 30. Rh2 {[%clk 0:01:08]}  Kd7 {[%clk 0:00:36]} 31. Ree2 {[%clk 0:00:40]}  Qa3 {[%clk 0:00:31]} 32. Rh6 {[%clk 0:00:35]}  Qxc3 {[%clk 0:00:20]} 33. Nxe6 {[%clk 0:00:34]}  Rxf3 {[%clk 0:00:18]} 34. Rxg6 {[%clk 0:00:24]}  Rxg3+ {[%clk 0:00:11]} 35. Rg2 {[%clk 0:00:24]}  Rh3 {[%clk 0:00:07]} 36. Nc5+ {[%clk 0:00:20]}  Kc7 {[%clk 0:00:07]} 37. Qf1 {[%clk 0:00:11]}  Qd4+ {[%clk 0:00:06]} 38. Rf2 {[%clk 0:00:10]}  Qxc5 {[%clk 0:00:05]} 39. Qxh3 {[%clk 0:00:09]}  Qxf2+ {[%clk 0:00:05]} 40. Kh1 {[%clk 0:00:09]}  Qe1+ {[%clk 0:00:05]} 41. Kg2 {[%clk 0:00:09]}  Nf4+ {[%clk 0:00:05]} 0-1


[Site "https://www.chess.com"]

[Event "Titled Tuesday Blitz June 14 Late 2022"]
[White "Ladan, Nicholas"]
[Black "Nazaretyan, Tigran"]
[WhiteFideId "30918855"]
[BlackFideId "24162345"]
[WhiteElo "2167"]
[BlackElo "2179"]
[Result "0-1"]
[Round "05"]
[TimeControl "180+1"]
[Date "2022.06.15"]
[WhiteClock "0:00:03"]
[BlackClock "0:00:18"]

1. d4 {[%clk 0:03:00]}  Nf6 {[%clk 0:02:54]} 2. Bf4 {[%clk 0:02:59]}  d6 {[%clk 0:02:53]} 3. e3 {[%clk 0:02:58]}  Nbd7 {[%clk 0:02:50]} 4. Nf3 {[%clk 0:02:54]}  Nh5 {[%clk 0:02:49]} 5. Bg3 {[%clk 0:02:46]}  g6 {[%clk 0:02:45]} 6. Bd3 {[%clk 0:02:43]}  Bg7 {[%clk 0:02:44]} 7. a4 {[%clk 0:02:40]}  c5 {[%clk 0:02:43]} 8. c3 {[%clk 0:02:39]}  Nxg3 {[%clk 0:02:22]} 9. hxg3 {[%clk 0:02:39]}  O-O {[%clk 0:02:17]} 10. Nbd2 {[%clk 0:02:37]}  b6 {[%clk 0:02:12]} 11. Ng5 {[%clk 0:02:28]}  Nf6 {[%clk 0:02:10]} 12. Nde4 {[%clk 0:02:13]}  h6 {[%clk 0:02:02]} 13. Nxf6+ {[%clk 0:02:08]}  Bxf6 {[%clk 0:01:55]} 14. Qf3 {[%clk 0:01:50]}  Rb8 {[%clk 0:01:43]} 15. Ne4 {[%clk 0:01:46]}  Bg7 {[%clk 0:01:43]} 16. d5 {[%clk 0:01:46]}  a6 {[%clk 0:01:37]} 17. g4 {[%clk 0:01:40]}  b5 {[%clk 0:01:36]} 18. axb5 {[%clk 0:01:39]}  axb5 {[%clk 0:01:36]} 19. g5 {[%clk 0:01:39]}  h5 {[%clk 0:01:35]} 20. Ng3 {[%clk 0:01:20]}  Bg4 {[%clk 0:01:33]} 21. Qf4 {[%clk 0:01:07]}  b4 {[%clk 0:01:31]} 22. Qc4 {[%clk 0:00:56]}  bxc3 {[%clk 0:01:15]} 23. bxc3 {[%clk 0:00:57]}  Rb2 {[%clk 0:01:11]} 24. O-O {[%clk 0:00:49]}  e6 {[%clk 0:00:57]} 25. Rfb1 {[%clk 0:00:43]}  Rxb1+ {[%clk 0:00:52]} 26. Rxb1 {[%clk 0:00:44]}  Qxg5 {[%clk 0:00:52]} 27. Ne4 {[%clk 0:00:42]}  Qe7 {[%clk 0:00:48]} 28. Rb6 {[%clk 0:00:38]}  Rd8 {[%clk 0:00:43]} 29. Qb3 {[%clk 0:00:34]}  exd5 {[%clk 0:00:43]} 30. Qxd5 {[%clk 0:00:32]}  Be6 {[%clk 0:00:43]} 31. Qc6 {[%clk 0:00:30]}  Bf8 {[%clk 0:00:33]} 32. g3 {[%clk 0:00:26]}  Rc8 {[%clk 0:00:32]} 33. Qb5 {[%clk 0:00:25]}  d5 {[%clk 0:00:31]} 34. Nd6 {[%clk 0:00:20]}  Rd8 {[%clk 0:00:27]} 35. Nb7 {[%clk 0:00:20]}  Rb8 {[%clk 0:00:26]} 36. Na5 {[%clk 0:00:17]}  Rxb6 {[%clk 0:00:25]} 37. Qxb6 {[%clk 0:00:18]}  c4 {[%clk 0:00:25]} 38. Bc2 {[%clk 0:00:17]}  Qa3 {[%clk 0:00:25]} 39. Bxg6 {[%clk 0:00:14]}  Qxc3 {[%clk 0:00:24]} 40. Kg2 {[%clk 0:00:15]}  Qh8 {[%clk 0:00:22]} 41. Bb1 {[%clk 0:00:11]}  h4 {[%clk 0:00:22]} 42. Qc7 {[%clk 0:00:06]}  h3+ {[%clk 0:00:20]} 43. Kh2 {[%clk 0:00:05]}  Qb2 {[%clk 0:00:18]} 44. Bg6 {[%clk 0:00:03]}  Qxf2+ {[%clk 0:00:18]} 0-1


[Site "https://www.chess.com"]

[Event "Titled Tuesday Blitz June 14 Late 2022"]
[White "Lewtak, Damian"]
[Black "Bluebaum, Matthias"]
[WhiteFideId "1141724"]
[BlackFideId "24651516"]
[WhiteElo "2379"]
[BlackElo "2556"]
[Result "0-1"]
[Round "05"]
[TimeControl "180+1"]
[Date "2022.06.14"]
[WhiteClock "0:00:04"]
[BlackClock "0:00:04"]

1. a3 {[%clk 0:02:47]}  d5 {[%clk 0:02:58]} 2. d4 {[%clk 0:02:44]}  Nf6 {[%clk 0:02:54]} 3. Nf3 {[%clk 0:02:45]}  e6 {[%clk 0:02:54]} 4. e3 {[%clk 0:02:44]}  Bd6 {[%clk 0:02:53]} 5. Nbd2 {[%clk 0:02:44]}  O-O {[%clk 0:02:53]} 6. Bd3 {[%clk 0:02:44]}  Nbd7 {[%clk 0:02:52]} 7. O-O {[%clk 0:02:44]}  e5 {[%clk 0:02:52]} 8. dxe5 {[%clk 0:02:44]}  Nxe5 {[%clk 0:02:53]} 9. Nxe5 {[%clk 0:02:44]}  Bxe5 {[%clk 0:02:54]} 10. h3 {[%clk 0:02:40]}  c6 {[%clk 0:02:50]} 11. c4 {[%clk 0:02:40]}  Be6 {[%clk 0:02:36]} 12. Nf3 {[%clk 0:02:35]}  Bc7 {[%clk 0:02:25]} 13. Qc2 {[%clk 0:02:33]}  Qd7 {[%clk 0:02:20]} 14. Ng5 {[%clk 0:02:14]}  Qd6 {[%clk 0:02:10]} 15. g3 {[%clk 0:02:11]}  h5 {[%clk 0:01:54]} 16. Nxe6 {[%clk 0:02:01]}  fxe6 {[%clk 0:01:55]} 17. c5 {[%clk 0:01:58]}  Qe7 {[%clk 0:01:42]} 18. e4 {[%clk 0:01:58]}  h4 {[%clk 0:01:39]} 19. g4 {[%clk 0:01:19]}  Nd7 {[%clk 0:01:18]} 20. b4 {[%clk 0:01:05]}  Bf4 {[%clk 0:01:09]} 21. exd5 {[%clk 0:01:00]}  exd5 {[%clk 0:01:07]} 22. Bf5 {[%clk 0:00:55]}  Bxc1 {[%clk 0:00:38]} 23. Raxc1 {[%clk 0:00:52]}  Ne5 {[%clk 0:00:39]} 24. Kg2 {[%clk 0:00:50]}  Qf6 {[%clk 0:00:33]} 25. f4 {[%clk 0:00:42]}  Nc4 {[%clk 0:00:27]} 26. Rce1 {[%clk 0:00:42]}  Rae8 {[%clk 0:00:27]} 27. Kh1 {[%clk 0:00:35]}  Qd4 {[%clk 0:00:22]} 28. Be6+ {[%clk 0:00:20]}  Kh8 {[%clk 0:00:05]} 29. Qg6 {[%clk 0:00:17]}  Qf6 {[%clk 0:00:06]} 30. Bf5 {[%clk 0:00:10]}  Qxg6 {[%clk 0:00:04]} 31. Bxg6 {[%clk 0:00:11]}  Re3 {[%clk 0:00:04]} 32. f5 {[%clk 0:00:05]}  Rd8 {[%clk 0:00:03]} 33. Kg1 {[%clk 0:00:02]}  Rxh3 {[%clk 0:00:02]} 34. f6 {[%clk 0:00:02]}  Rg3+ {[%clk 0:00:02]} 35. Kh2 {[%clk 0:00:02]}  Rxg4 {[%clk 0:00:03]} 36. f7 {[%clk 0:00:02]}  Rxg6 {[%clk 0:00:03]} 37. Re8+ {[%clk 0:00:02]}  Kh7 {[%clk 0:00:02]} 38. Rxd8 {[%clk 0:00:02]}  Ne3 {[%clk 0:00:02]} 39. Rf3 {[%clk 0:00:02]}  Ng4+ {[%clk 0:00:01]} 40. Kh3 {[%clk 0:00:03]}  Ne5 {[%clk 0:00:02]} 41. f8=Q {[%clk 0:00:03]}  Rg1 {[%clk 0:00:02]} 42. Qh8+ {[%clk 0:00:01]}  Kg6 {[%clk 0:00:03]} 43. Qxh4 {[%clk 0:00:02]}  Rh1+ {[%clk 0:00:03]} 44. Kg3 {[%clk 0:00:02]}  Rxh4 {[%clk 0:00:04]} 45. Rff8 {[%clk 0:00:02]}  Rg4+ {[%clk 0:00:04]} 46. Kh3 {[%clk 0:00:02]}  Rc4 {[%clk 0:00:05]} 47. Rfe8 {[%clk 0:00:03]}  Rc3+ {[%clk 0:00:05]} 48. Kh4 {[%clk 0:00:03]}  Rc4+ {[%clk 0:00:05]} 49. Kg3 {[%clk 0:00:03]}  Kf5 {[%clk 0:00:05]} 50. Rf8+ {[%clk 0:00:03]}  Ke4 {[%clk 0:00:06]} 51. Rde8 {[%clk 0:00:04]}  Rc3+ {[%clk 0:00:06]} 52. Kh4 {[%clk 0:00:04]}  Re3 {[%clk 0:00:05]} 53. Rf7 {[%clk 0:00:04]}  Kd4 {[%clk 0:00:05]} 54. Rfe7 {[%clk 0:00:04]}  Ng6+ {[%clk 0:00:04]} 0-1


[Site "https://www.chess.com"]

[Event "Titled Tuesday Blitz June 14 Late 2022"]
[White "Livaic, Leon"]
[Black "Le Goff, Ronan"]
[WhiteFideId "14531534"]
[BlackFideId "612073"]
[WhiteElo "2540"]
[BlackElo "2276"]
[Result "1-0"]
[Round "05"]
[TimeControl "180+1"]
[Date "2022.06.14"]
[WhiteClock "0:00:07"]
[BlackClock "0:00:01"]

1. d4 {[%clk 0:03:00]}  Nf6 {[%clk 0:02:49]} 2. Nc3 {[%clk 0:03:00]}  d5 {[%clk 0:02:48]} 3. Bf4 {[%clk 0:02:59]}  c5 {[%clk 0:02:47]} 4. e4 {[%clk 0:02:59]}  dxe4 {[%clk 0:02:34]} 5. dxc5 {[%clk 0:02:58]}  Bd7 {[%clk 0:01:57]} 6. Nge2 {[%clk 0:02:39]}  Nc6 {[%clk 0:01:46]} 7. Ng3 {[%clk 0:02:37]}  Qa5 {[%clk 0:01:41]} 8. Qd2 {[%clk 0:02:30]}  e5 {[%clk 0:01:41]} 9. Bg5 {[%clk 0:02:16]}  Bxc5 {[%clk 0:01:35]} 10. Bxf6 {[%clk 0:02:16]}  gxf6 {[%clk 0:01:36]} 11. Ncxe4 {[%clk 0:02:16]}  Qxd2+ {[%clk 0:01:32]} 12. Kxd2 {[%clk 0:02:15]}  Be7 {[%clk 0:01:32]} 13. Rd1 {[%clk 0:01:39]}  f5 {[%clk 0:01:28]} 14. Nc3 {[%clk 0:01:38]}  Bg5+ {[%clk 0:01:25]} 15. Ke1 {[%clk 0:01:37]}  Nd4 {[%clk 0:01:15]} 16. Bd3 {[%clk 0:01:33]}  O-O-O {[%clk 0:01:08]} 17. Nce2 {[%clk 0:01:29]}  Nxe2 {[%clk 0:00:56]} 18. Kxe2 {[%clk 0:01:30]}  e4 {[%clk 0:00:53]} 19. Bc4 {[%clk 0:01:30]}  Be6 {[%clk 0:00:39]} 20. Bxe6+ {[%clk 0:01:30]}  fxe6 {[%clk 0:00:39]} 21. Nh5 {[%clk 0:01:15]}  Rhe8 {[%clk 0:00:24]} 22. h3 {[%clk 0:01:11]}  Kc7 {[%clk 0:00:22]} 23. g4 {[%clk 0:01:03]}  h6 {[%clk 0:00:19]} 24. h4 {[%clk 0:00:54]}  Rxd1 {[%clk 0:00:14]} 25. Kxd1 {[%clk 0:00:52]}  Rd8+ {[%clk 0:00:12]} 26. Ke1 {[%clk 0:00:52]}  Bd2+ {[%clk 0:00:11]} 27. Ke2 {[%clk 0:00:52]}  Ba5 {[%clk 0:00:11]} 28. c3 {[%clk 0:00:43]}  fxg4 {[%clk 0:00:09]} 29. Rg1 {[%clk 0:00:38]}  Rd3 {[%clk 0:00:03]} 30. Nf4 {[%clk 0:00:31]}  Rf3 {[%clk 0:00:03]} 31. Nxe6+ {[%clk 0:00:32]}  Kd6 {[%clk 0:00:03]} 32. Nd4 {[%clk 0:00:32]}  Rf4 {[%clk 0:00:03]} 33. Ke3 {[%clk 0:00:31]}  Ke5 {[%clk 0:00:03]} 34. Ke2 {[%clk 0:00:17]}  Bb6 {[%clk 0:00:02]} 35. Rd1 {[%clk 0:00:16]}  Bxd4 {[%clk 0:00:02]} 36. Rxd4 {[%clk 0:00:16]}  Rf3 {[%clk 0:00:02]} 37. Rb4 {[%clk 0:00:14]}  g3 {[%clk 0:00:02]} 38. fxg3 {[%clk 0:00:11]}  Rxg3 {[%clk 0:00:03]} 39. Rxb7 {[%clk 0:00:11]}  Rh3 {[%clk 0:00:03]} 40. Rxa7 {[%clk 0:00:10]}  Rh2+ {[%clk 0:00:02]} 41. Ke3 {[%clk 0:00:10]}  Rh3+ {[%clk 0:00:02]} 42. Kd2 {[%clk 0:00:09]}  Rh2+ {[%clk 0:00:03]} 43. Kc1 {[%clk 0:00:10]}  e3 {[%clk 0:00:03]} 44. Re7+ {[%clk 0:00:10]}  Kf4 {[%clk 0:00:04]} 45. a4 {[%clk 0:00:09]}  Kf3 {[%clk 0:00:03]} 46. a5 {[%clk 0:00:09]}  Rh1+ {[%clk 0:00:04]} 47. Kc2 {[%clk 0:00:09]}  e2 {[%clk 0:00:04]} 48. a6 {[%clk 0:00:06]}  e1=Q {[%clk 0:00:03]} 49. Rxe1 {[%clk 0:00:07]}  Rxe1 {[%clk 0:00:04]} 50. b4 {[%clk 0:00:08]}  Kg4 {[%clk 0:00:03]} 51. b5 {[%clk 0:00:06]}  Kxh4 {[%clk 0:00:02]} 52. b6 {[%clk 0:00:06]}  Ra1 {[%clk 0:00:02]} 53. b7 {[%clk 0:00:06]}  Rxa6 {[%clk 0:00:01]} 54. b8=Q {[%clk 0:00:07]}  Rg6 {[%clk 0:00:02]} 55. Qe8 {[%clk 0:00:06]}  Rg5 {[%clk 0:00:02]} 56. c4 {[%clk 0:00:06]}  Rg2+ {[%clk 0:00:01]} 57. Kd3 {[%clk 0:00:07]}  h5 {[%clk 0:00:02]} 58. c5 {[%clk 0:00:06]}  Rg3+ {[%clk 0:00:02]} 59. Ke2 {[%clk 0:00:07]}  Kg4 {[%clk 0:00:01]} 60. c6 {[%clk 0:00:07]}  h4 {[%clk 0:00:01]} 61. Qe4+ {[%clk 0:00:06]}  Kh3 {[%clk 0:00:01]} 62. c7 {[%clk 0:00:07]} 1-0


[Site "https://www.chess.com"]

[Event "Titled Tuesday Blitz June 14 Late 2022"]
[White "Luo, Terry"]
[Black "Injac, Teodora"]
[WhiteFideId "30931045"]
[BlackFideId "932400"]
[WhiteElo "2024"]
[BlackElo "2278"]
[Result "1-0"]
[Round "05"]
[TimeControl "180+1"]
[Date "2022.06.14"]
[WhiteClock "0:00:06"]
[BlackClock "0:00:02"]

1. d4 {[%clk 0:03:00]}  Nf6 {[%clk 0:02:59]} 2. c4 {[%clk 0:03:01]}  g6 {[%clk 0:02:59]} 3. Nc3 {[%clk 0:03:01]}  Bg7 {[%clk 0:03:00]} 4. e4 {[%clk 0:03:01]}  d6 {[%clk 0:03:01]} 5. Nf3 {[%clk 0:03:02]}  O-O {[%clk 0:03:00]} 6. Be2 {[%clk 0:03:02]}  e5 {[%clk 0:02:53]} 7. O-O {[%clk 0:03:03]}  Bg4 {[%clk 0:02:51]} 8. d5 {[%clk 0:03:01]}  a5 {[%clk 0:02:51]} 9. h3 {[%clk 0:03:00]}  Bd7 {[%clk 0:02:49]} 10. Be3 {[%clk 0:02:52]}  Na6 {[%clk 0:02:49]} 11. Nd2 {[%clk 0:02:52]}  Nc5 {[%clk 0:02:47]} 12. b3 {[%clk 0:02:48]}  b6 {[%clk 0:02:36]} 13. a3 {[%clk 0:02:48]}  Kh8 {[%clk 0:02:27]} 14. b4 {[%clk 0:02:46]}  Nb7 {[%clk 0:02:27]} 15. Bd3 {[%clk 0:02:20]}  Ng8 {[%clk 0:02:26]} 16. g4 {[%clk 0:02:19]}  Bh6 {[%clk 0:02:25]} 17. Qe2 {[%clk 0:02:14]}  Qh4 {[%clk 0:02:21]} 18. Kg2 {[%clk 0:02:14]}  Bxe3 {[%clk 0:02:13]} 19. Qxe3 {[%clk 0:02:14]}  f5 {[%clk 0:01:54]} 20. Qg3 {[%clk 0:01:42]}  Qe7 {[%clk 0:01:39]} 21. f3 {[%clk 0:01:25]}  Nf6 {[%clk 0:01:20]} 22. Kh2 {[%clk 0:00:49]}  Ne8 {[%clk 0:00:56]} 23. exf5 {[%clk 0:00:31]}  gxf5 {[%clk 0:00:56]} 24. gxf5 {[%clk 0:00:32]}  Ng7 {[%clk 0:00:52]} 25. Rg1 {[%clk 0:00:28]}  Nxf5 {[%clk 0:00:52]} 26. Bxf5 {[%clk 0:00:28]}  Bxf5 {[%clk 0:00:52]} 27. Nce4 {[%clk 0:00:27]}  Rg8 {[%clk 0:00:51]} 28. Qf2 {[%clk 0:00:25]}  axb4 {[%clk 0:00:45]} 29. axb4 {[%clk 0:00:22]}  Rxa1 {[%clk 0:00:41]} 30. Rxa1 {[%clk 0:00:23]}  Qf7 {[%clk 0:00:39]} 31. Rg1 {[%clk 0:00:21]}  Rxg1 {[%clk 0:00:29]} 32. Qxg1 {[%clk 0:00:20]}  Qh5 {[%clk 0:00:22]} 33. Qg3 {[%clk 0:00:15]}  Nd8 {[%clk 0:00:17]} 34. Nf1 {[%clk 0:00:13]}  Nf7 {[%clk 0:00:13]} 35. Ne3 {[%clk 0:00:10]}  Bxe4 {[%clk 0:00:13]} 36. fxe4 {[%clk 0:00:10]}  Qe2+ {[%clk 0:00:13]} 37. Kh1 {[%clk 0:00:09]}  Nh6 {[%clk 0:00:08]} 38. Ng2 {[%clk 0:00:02]}  Qxe4 {[%clk 0:00:08]} 39. Qg5 {[%clk 0:00:03]}  Qb1+ {[%clk 0:00:03]} 40. Kh2 {[%clk 0:00:03]}  Qg6 {[%clk 0:00:04]} 41. Qd8+ {[%clk 0:00:03]}  Ng8 {[%clk 0:00:05]} 42. Qxc7 {[%clk 0:00:03]}  e4 {[%clk 0:00:04]} 43. Qxb6 {[%clk 0:00:04]}  Qf6 {[%clk 0:00:02]} 44. Qe3 {[%clk 0:00:04]}  Qe5+ {[%clk 0:00:02]} 45. Qf4 {[%clk 0:00:04]}  Qxf4+ {[%clk 0:00:02]} 46. Nxf4 {[%clk 0:00:04]}  Nf6 {[%clk 0:00:02]} 47. c5 {[%clk 0:00:04]}  dxc5 {[%clk 0:00:02]} 48. bxc5 {[%clk 0:00:05]}  e3 {[%clk 0:00:03]} 49. c6 {[%clk 0:00:05]}  e2 {[%clk 0:00:03]} 50. Nxe2 {[%clk 0:00:05]}  Nxd5 {[%clk 0:00:04]} 51. Kg3 {[%clk 0:00:06]}  Nc7 {[%clk 0:00:04]} 52. Kf4 {[%clk 0:00:06]}  Kg7 {[%clk 0:00:05]} 53. Ke5 {[%clk 0:00:07]}  Kf7 {[%clk 0:00:05]} 54. Kd6 {[%clk 0:00:07]}  Nb5+ {[%clk 0:00:06]} 55. Kd7 {[%clk 0:00:08]}  Kf6 {[%clk 0:00:05]} 56. Nc3 {[%clk 0:00:06]}  Na7 {[%clk 0:00:04]} 57. c7 {[%clk 0:00:05]}  Kg5 {[%clk 0:00:03]} 58. Nb5 {[%clk 0:00:05]}  Nxb5 {[%clk 0:00:02]} 59. c8=Q {[%clk 0:00:06]} 1-0


[Site "https://www.chess.com"]